fUSD/lending_fUSD_20250623
["ID","MTS","AMOUNT","RATE_DAILY","PERIOD"]
[367264277,1750722653811,-490.0,0.00022191,2]
[367264278,1750722653821,-490.0,0.00022191,2]
[367264279,1750722653834,-490.0,0.00022191,2]
[367264280,1750722653843,-490.0,0.00022191,2]
[367264281,1750722653852,-151.0,0.00022191,7]
[367264282,1750722653861,-490.0,0.00022191,2]
[367264283,1750722653871,-582.87,0.00022191,2]
[367264284,1750722653880,-490.0,0.00022191,2]
[367264285,1750722653889,-751.41,0.00022191,2]
[367264286,1750722653898,-490.0,0.00022191,2]
[367264287,1750722653907,-490.0,0.00022191,2]
[367264288,1750722653917,-490.0,0.00022191,2]
[367264289,1750722653926,-588.0,0.00022191,2]
[367264290,1750722653935,-980.74,0.00022191,2]
[367264291,1750722653944,-490.0,0.00022191,2]
[367264292,1750722653954,-490.0,0.00022191,2]
[367264293,1750722653963,-554.04,0.00022191,2]
[367264294,1750722653972,-490.0,0.00022191,2]
[367264295,1750722653982,-609.37,0.00022191,2]
[367264296,1750722653991,-490.0,0.00022191,2]
[367264297,1750722654000,-490.0,0.00022191,2]
[367264298,1750722654009,-490.0,0.00022191,2]
[367264299,1750722654018,-533.71,0.00022191,2]
[367264300,1750722654027,-287.49311077,0.00022191,2]
[367264301,1750722654036,-490.0,0.00022191,2]
[367264302,1750722654045,-490.0,0.00022191,2]
[367264303,1750722654054,-490.0,0.00022191,2]
[367264304,1750722654062,-490.0,0.00022191,2]
[367264305,1750722654071,-849.14,0.00022191,2]
[367264306,1750722654080,-490.0,0.00022191,2]
[367264307,1750722654090,-490.0,0.00022191,2]
[367264308,1750722654099,-490.0,0.00022191,2]
[367264309,1750722654397,-490.0,0.00022191,2]
[367264310,1750722654423,-490.0,0.00022191,2]
[367264311,1750722654433,-491.0,0.00022191,2]
[367264312,1750722654446,-490.0,0.00022191,2]
[367264313,1750722654455,-490.0,0.00022191,2]
[367264314,1750722654465,-490.0,0.00022191,2]
[367264315,1750722654474,-1013.16,0.00022191,2]
[367264316,1750722654484,-490.0,0.00022191,2]
[367264317,1750722654494,-490.0,0.00022191,2]
[367264318,1750722654504,-490.0,0.00022191,2]
[367264319,1750722654513,-490.0,0.00022191,2]
[367264320,1750722654523,-490.0,0.00022191,2]
[367264321,1750722654533,-490.0,0.00022191,2]
[367264322,1750722654542,-490.0,0.00022191,2]
[367264323,1750722654552,-490.0,0.00022191,2]
[367264324,1750722654561,-780.51,0.00022191,2]
[367264325,1750722654574,-579.65,0.00022191,2]
[367264326,1750722654583,-556.58,0.00022191,2]
[367264327,1750722654593,-869.78,0.00022191,2]
[367264328,1750722654603,-660.96,0.00022191,2]
[367264329,1750722654613,-490.0,0.00022191,2]
[367264330,1750722654623,-593.95,0.00022191,2]
[367264331,1750722654632,-627.48,0.00022191,2]
[367264332,1750722654641,-633.11,0.00022191,2]
[367264333,1750722654651,-785.73,0.00022191,2]
[367264334,1750722654661,-490.0,0.00022191,2]
[367264335,1750722654670,-490.0,0.00022191,2]
[367264336,1750722654679,-490.0,0.00022191,2]
[367264337,1750722654689,-490.0,0.00022191,2]
[367264338,1750722654700,-490.0,0.00022191,2]
[367264339,1750722654709,-490.0,0.00022191,2]
[367264340,1750722654718,-490.0,0.00022191,2]
[367264341,1750722654728,-918.6,0.00022191,2]
[367264342,1750722654738,-490.0,0.00022191,2]
[367264343,1750722654747,-490.0,0.00022191,2]
[367264344,1750722654756,-490.0,0.00022191,2]
[367264345,1750722654766,-490.0,0.00022191,2]
[367264346,1750722654776,-490.0,0.00022191,2]
[367264347,1750722654786,-490.0,0.00022191,2]
[367264348,1750722654796,-151.0,0.00022191,7]
[367264349,1750722654807,-497.36,0.00022191,2]
[367264350,1750722654818,-490.0,0.00022191,2]
[367264351,1750722654831,-589.72,0.00022191,2]
[367264352,1750722654842,-531.11,0.00022191,2]
[367264353,1750722654851,-602.51,0.00022191,2]
[367264354,1750722654860,-759.11,0.00022191,2]
[367264355,1750722654870,-490.0,0.00022191,2]
[367264356,1750722654880,-502.6,0.00022191,2]
[367264357,1750722654889,-153.826202,0.00022191,7]
[367264358,1750722654900,-1316.83,0.00022191,2]
[367264359,1750722654910,-975.58,0.00022191,2]
[367264360,1750722654920,-490.0,0.00022191,2]
[367264361,1750722654930,-949.61,0.00022191,2]
[367264362,1750722654939,-490.0,0.00022191,2]
[367264363,1750722654949,-490.0,0.00022191,2]
[367264364,1750722654960,-490.0,0.00022191,2]
[367264365,1750722654971,-490.0,0.00022191,2]
[367264366,1750722654982,-490.0,0.00022191,2]
[367264367,1750722654991,-490.0,0.00022191,2]
[367264368,1750722655002,-490.0,0.00022191,2]
[367264369,1750722655012,-490.0,0.00022191,2]
[367264370,1750722655022,-653.64,0.00022191,2]
[367264371,1750722655031,-550.91385613,0.00022191,2]
[367264372,1750722655042,-490.0,0.00022191,2]
[367264373,1750722655051,-151.0,0.00022191,7]
[367264374,1750722655062,-490.0,0.00022191,2]
[367264375,1750722655071,-490.0,0.00022191,2]
[367264376,1750722655081,-490.0,0.00022191,2]
[367264377,1750722655093,-490.0,0.00022191,2]
[367264378,1750722655103,-151.0,0.00022191,7]
[367264379,1750722655114,-490.0,0.00022191,2]
[367264380,1750722655124,-648.14,0.00022191,2]
[367264381,1750722655133,-490.0,0.00022191,2]
[367264382,1750722655143,-490.0,0.00022191,2]
[367264383,1750722655153,-490.0,0.00022191,2]
[367264384,1750722655163,-490.0,0.00022191,2]
[367264385,1750722655172,-686.78,0.00022191,2]
[367264386,1750722655182,-490.0,0.00022191,2]
[367264387,1750722655191,-490.0,0.00022191,2]
[367264388,1750722655200,-556.82,0.00022191,2]
[367264389,1750722655209,-490.0,0.00022191,2]
[367264390,1750722655219,-151.0,0.00022191,7]
[367264391,1750722655228,-674.79,0.00022191,2]
[367264392,1750722655237,-490.0,0.00022191,2]
[367264393,1750722655247,-490.0,0.00022191,2]
[367264394,1750722655256,-624.84,0.00022191,2]
[367264395,1750722655265,-254.9463344,0.00022191,2]
[367264396,1750722655275,-1024.07,0.00022191,2]
[367264397,1750722655284,-490.0,0.00022191,2]
[367264398,1750722655293,-490.0,0.00022191,2]
[367264399,1750722655303,-490.0,0.00022191,2]
[367264400,1750722655313,-678.9,0.00022191,2]
[367264401,1750722655322,-490.0,0.00022191,2]
[367264402,1750722655332,-490.0,0.00022191,2]
[367264403,1750722655341,-490.0,0.00022191,2]
[367264404,1750722655351,-490.0,0.00022191,2]
[367264405,1750722655361,-490.0,0.00022191,2]
[367264406,1750722655371,-490.0,0.00022191,2]
[367264407,1750722655380,-490.0,0.00022191,2]
[367264408,1750722655389,-490.0,0.00022191,2]
[367264409,1750722655399,-490.0,0.00022191,2]
[367264410,1750722655409,-311.57926212,0.00022191,2]
[367264411,1750722655418,-505.2092582,0.00022191,2]
[367264412,1750722655428,-1001.69,0.00022191,2]
[367264413,1750722655437,-490.0,0.00022191,2]
[367264414,1750722655446,-491.42032637,0.00022191,2]
[367264415,1750722655456,-490.0,0.00022191,2]
[367264416,1750722655466,-490.0,0.00022191,2]
[367264417,1750722655476,-490.0,0.00022191,2]
[367264418,1750722655485,-490.0,0.00022191,2]
[367264419,1750722655495,-490.0,0.00022191,2]
[367264420,1750722655505,-490.0,0.00022191,2]
[367264421,1750722655514,-490.0,0.00022191,2]
[367264422,1750722655524,-554.78922441,0.00022191,2]
[367264423,1750722655534,-490.0,0.00022191,2]
[367264424,1750722655543,-490.0,0.00022191,2]
[367264425,1750722655554,-490.0,0.00022191,2]
[367264426,1750722655563,-490.0,0.00022191,2]
[367264427,1750722655573,-874.8,0.00022191,2]
[367264428,1750722655582,-490.0,0.00022191,2]
[367264429,1750722655592,-737.47,0.00022191,2]
[367264430,1750722655601,-575.57,0.00022191,2]
[367264431,1750722655611,-490.0,0.00022191,2]
[367264432,1750722655621,-490.0,0.00022191,2]
[367264433,1750722655631,-490.0,0.00022191,2]
[367264434,1750722655641,-490.0,0.00022191,2]
[367264435,1750722655650,-490.0,0.00022191,2]
[367264436,1750722655659,-490.0,0.00022191,2]
[367264437,1750722655669,-624.47,0.00022191,2]
[367264438,1750722655678,-490.0,0.00022191,2]
[367264439,1750722655687,-480.73813288,0.00022191,2]
[367264440,1750722655696,-490.0,0.00022191,2]
[367264441,1750722655706,-490.0,0.00022191,2]
[367264442,1750722655715,-490.0,0.00022191,2]
[367264443,1750722655725,-490.0,0.00022191,2]
[367264444,1750722655734,-490.0,0.00022191,2]
[367264445,1750722655744,-505.59,0.00022191,2]
[367264446,1750722655753,-555.69104961,0.00022191,2]
[367264447,1750722655763,-664.7,0.00022191,2]
[367264448,1750722655773,-490.0,0.00022191,2]
[367264449,1750722655783,-490.0,0.00022191,2]
[367264450,1750722655792,-490.0,0.00022191,2]
[367264451,1750722655802,-490.0,0.00022191,2]
[367264452,1750722655811,-490.0,0.00022191,2]
[367264453,1750722655822,-490.0,0.00022191,2]
[367264454,1750722655834,-490.0,0.00022191,2]
[367264455,1750722655844,-490.0,0.00022191,2]
[367264456,1750722655853,-502.1,0.00022191,2]
[367264457,1750722655862,-490.0,0.00022191,2]
[367264458,1750722655872,-490.0,0.00022191,2]
[367264459,1750722655881,-831.47,0.00022191,2]
[367264460,1750722655890,-490.0,0.00022191,2]
[367264461,1750722655899,-490.0,0.00022191,2]
[367264462,1750722655908,-490.0,0.00022191,2]
[367264463,1750722655918,-490.0,0.00022191,2]
[367264464,1750722655928,-889.99,0.00022191,2]
[367264465,1750722655937,-295.91668367,0.00022191,2]
[367264466,1750722655947,-574.36,0.00022191,2]
[367264467,1750722655956,-490.0,0.00022191,2]
[367264468,1750722655965,-490.0,0.00022191,2]
[367264469,1750722655975,-644.55,0.00022191,2]
[367264470,1750722655984,-318.05138015,0.00022191,2]
[367264471,1750722655995,-891.28,0.00022191,2]
[367264472,1750722656004,-490.0,0.00022191,2]
[367264473,1750722656016,-490.0,0.00022191,2]
[367264474,1750722656026,-1024.42,0.00022191,2]
[367264475,1750722656036,-490.0,0.00022191,2]
[367264476,1750722656046,-632.85204617,0.00022191,2]
[367264477,1750722656055,-490.0,0.00022191,2]
[367264478,1750722656064,-490.0,0.00022191,2]
[367264479,1750722656073,-490.0,0.00022191,2]
[367264480,1750722656083,-1009.98,0.00022191,2]
[367264481,1750722656092,-490.0,0.00022191,2]
[367264482,1750722656101,-490.0,0.00022191,2]
[367264483,1750722656110,-304.29052185,0.00022191,2]
[367264484,1750722656119,-571.47640619,0.00022191,2]
[367264485,1750722656128,-490.0,0.00022191,2]
[367264486,1750722656137,-490.0,0.00022191,2]
[367264487,1750722656147,-1140.07,0.00022191,2]
[367264488,1750722656156,-490.0,0.00022191,2]
[367264489,1750722656165,-490.0,0.00022191,2]
[367264490,1750722656174,-490.0,0.00022191,2]
[367264491,1750722656184,-490.0,0.00022191,2]
[367264492,1750722656193,-490.0,0.00022191,2]
[367264493,1750722656202,-809.41,0.00022191,2]
[367264494,1750722656211,-164.40309039,0.00022191,2]
[367264495,1750722656220,-490.0,0.00022191,2]
[367264496,1750722656229,-490.0,0.00022191,2]
[367264497,1750722656238,-490.0,0.00022191,2]
[367264498,1750722656248,-490.0,0.00022191,2]
[367264499,1750722656257,-490.0,0.00022191,2]
[367264500,1750722656266,-490.0,0.00022191,2]
[367264501,1750722656275,-490.0,0.00022191,2]
[367264502,1750722656284,-1220.1,0.00022191,2]
[367264503,1750722656294,-707.74,0.00022191,2]
[367264504,1750722656303,-863.02,0.00022191,2]
[367264505,1750722656312,-490.0,0.00022191,2]
[367264506,1750722656322,-490.0,0.00022191,2]
[367264507,1750722656332,-490.0,0.00022191,2]
[367264508,1750722656341,-490.0,0.00022191,2]
[367264509,1750722656351,-524.66,0.00022191,2]
[367264510,1750722656362,-490.0,0.00022191,2]
[367264511,1750722656372,-490.0,0.00022191,2]
[367264512,1750722656382,-490.0,0.00022191,2]
[367264513,1750722656391,-490.0,0.00022191,2]
[367264514,1750722656401,-490.0,0.00022191,2]
[367264515,1750722656411,-490.0,0.00022191,2]
[367264516,1750722656420,-490.0,0.00022191,2]
[367264517,1750722656429,-490.0,0.00022191,2]
[367264518,1750722656439,-578.53,0.00022191,2]
[367264519,1750722656448,-490.0,0.00022191,2]
[367264520,1750722656457,-503.82,0.00022191,2]
[367264521,1750722656467,-701.07,0.00022191,2]
[367264522,1750722656476,-490.0,0.00022191,2]
[367264523,1750722656486,-490.0,0.00022191,2]
[367264524,1750722656495,-743.33,0.00022191,2]
[367264525,1750722656504,-490.0,0.00022191,2]
[367264526,1750722656514,-490.0,0.00022191,2]
[367264527,1750722656523,-490.0,0.00022191,2]
[367264528,1750722656533,-8500.71,0.00022191,2]
[367264529,1750722656542,-490.0,0.00022191,2]
[367264530,1750722656551,-490.0,0.00022191,2]
[367264531,1750722656561,-490.0,0.00022191,2]
[367264532,1750722656570,-490.0,0.00022191,2]
[367264533,1750722656580,-490.0,0.00022191,2]
[367264534,1750722656590,-567.36,0.00022191,2]
[367264535,1750722656599,-639.66,0.00022191,2]
[367264536,1750722656609,-168.02566792,0.00022191,2]
[367264537,1750722656619,-866.14,0.00022191,2]
[367264538,1750722656628,-490.0,0.00022191,2]
[367264539,1750722656638,-726.9,0.00022191,2]
[367264540,1750722656647,-490.0,0.00022191,2]
[367264541,1750722656657,-490.0,0.00022191,2]
[367264542,1750722656666,-490.0,0.00022191,2]
[367264543,1750722656676,-658.73,0.00022191,2]
[367264544,1750722656685,-709.26,0.00022191,2]
[367264545,1750722656694,-490.0,0.00022191,2]
[367264546,1750722656703,-490.0,0.00022191,2]
[367264547,1750722656713,-490.0,0.00022191,2]
[367264548,1750722656722,-151.0,0.00022191,7]
[367264549,1750722656795,-490.0,0.00022191,2]
[367264550,1750722656805,-490.0,0.00022191,2]
[367264551,1750722656814,-520.15,0.00022191,2]
[367264552,1750722656824,-668.39,0.00022191,2]
[367264553,1750722656839,-890.8,0.00022191,2]
[367264554,1750722656848,-368.04395175,0.00022191,2]
[367264555,1750722656857,-490.0,0.00022191,2]
[367264556,1750722656867,-1817.04,0.00022191,2]
[367264557,1750722656877,-490.0,0.00022191,2]
[367264558,1750722656887,-490.0,0.00022191,2]
[367264559,1750722656895,-490.0,0.00022191,2]
[367264560,1750722656906,-490.0,0.00022191,2]
[367264561,1750722656916,-490.0,0.00022191,2]
[367264562,1750722656925,-490.0,0.00022191,2]
[367264563,1750722656935,-594.019086,0.00022191,2]
[367264564,1750722656944,-490.0,0.00022191,2]
[367264565,1750722656953,-490.0,0.00022191,2]
[367264566,1750722656962,-161.34,0.00022191,2]
[367264567,1750722656971,-660.76,0.00022191,2]
[367264568,1750722656981,-490.0,0.00022191,2]
[367264569,1750722656989,-889.57,0.00022191,2]
[367264570,1750722656999,-852.61,0.00022191,2]
[367264571,1750722657008,-639.15,0.00022191,2]
[367264572,1750722657017,-165.34,0.00022191,2]
[367264573,1750722657026,-490.0,0.00022191,2]
[367264574,1750722657035,-490.0,0.00022191,2]
[367264575,1750722657045,-178.87025188,0.00022191,2]
[367264576,1750722657054,-725.63,0.00022191,2]
[367264577,1750722657064,-1036.14,0.00022191,2]
[367264578,1750722657073,-490.0,0.00022191,2]
[367264579,1750722657082,-600.36,0.00022191,2]
[367264580,1750722657091,-151.0,0.00022191,7]
[367264581,1750722657100,-490.0,0.00022191,2]
[367264582,1750722657110,-490.0,0.00022191,2]
[367264583,1750722657122,-250.0,0.00022191,2]
[367264584,1750722657133,-151.0,0.00022191,7]
[367264585,1750722657142,-490.0,0.00022191,2]
[367264586,1750722657151,-490.0,0.00022191,2]
[367264587,1750722657161,-490.0,0.00022191,2]
[367264588,1750722657171,-452.25104179,0.00022191,2]
[367264589,1750722657180,-687.15,0.00022191,2]
[367264590,1750722657189,-2016.76,0.00022191,2]
[367264591,1750722657198,-3451.37,0.00022191,2]
[367264592,1750722657207,-490.0,0.00022191,2]
[367264593,1750722657216,-490.0,0.00022191,2]
[367264594,1750722657225,-444.24077511,0.00022191,2]
[367264595,1750722657234,-490.0,0.00022191,2]
[367264596,1750722657243,-490.0,0.00022191,2]
[367264597,1750722657252,-1486.84,0.00022191,2]
[367264598,1750722657262,-151.0,0.00022191,7]
[367264599,1750722657271,-490.0,0.00022191,2]
[367264600,1750722657281,-2600.88,0.00022191,2]
[367264601,1750722657290,-988.75,0.00022191,2]
[367264602,1750722657299,-490.0,0.00022191,2]
[367264603,1750722657308,-151.0,0.00022191,7]
[367264604,1750722657318,-584.11190326,0.00022191,2]
[367264605,1750722657327,-490.0,0.00022191,2]
[367264606,1750722657336,-490.0,0.00022191,2]
[367264607,1750722657345,-852.3,0.00022191,2]
[367264608,1750722657354,-490.0,0.00022191,2]
[367264609,1750722657363,-891.95,0.00022191,2]
[367264610,1750722657374,-490.0,0.00022191,2]
[367264611,1750722657383,-490.0,0.00022191,2]
[367264612,1750722657392,-543.07,0.00022191,2]
[367264613,1750722657402,-490.0,0.00022191,2]
[367264614,1750722657411,-300.0,0.00022191,2]
[367264615,1750722657420,-533.43,0.00022191,2]
[367264616,1750722657429,-490.0,0.00022191,2]
[367264617,1750722657439,-490.0,0.00022191,2]
[367264618,1750722657448,-685.3,0.00022191,2]
[367264619,1750722657457,-490.0,0.00022191,2]
[367264620,1750722657467,-490.0,0.00022191,2]
[367264621,1750722657476,-1059.99,0.00022191,2]
[367264622,1750722657485,-490.0,0.00022191,2]
[367264623,1750722657494,-151.0,0.00022191,7]
[367264624,1750722657503,-1239.33,0.00022191,2]
[367264625,1750722657512,-490.0,0.00022191,2]
[367264626,1750722657522,-1225.41,0.00022191,2]
[367264627,1750722657531,-1859.87,0.00022191,2]
[367264628,1750722657540,-490.0,0.00022191,2]
[367264629,1750722657549,-747.66,0.00022191,2]
[367264630,1750722657559,-573.42128434,0.00022191,2]
[367264631,1750722657568,-3515.34,0.00022191,2]
[367264632,1750722657577,-490.0,0.00022191,2]
[367264633,1750722657586,-644.73,0.00022191,2]
[367264634,1750722657595,-490.0,0.00022191,2]
[367264635,1750722657604,-490.0,0.00022191,2]
[367264636,1750722657614,-1516.29,0.00022191,2]
[367264637,1750722657623,-490.0,0.00022191,2]
[367264638,1750722657633,-2258.43,0.00022191,2]
[367264639,1750722657642,-1049.17,0.00022191,2]
[367264640,1750722657651,-588.18,0.00022191,2]
[367264641,1750722657659,-490.0,0.00022191,2]
[367264642,1750722657669,-68697.11,0.00022191,2]
[367264643,1750722657678,-936.03,0.00022191,2]
[367264644,1750722657687,-490.0,0.00022191,2]
[367264645,1750722657696,-490.0,0.00022191,2]
[367264646,1750722657706,-1139.14,0.00022191,2]
[367264647,1750722657715,-490.0,0.00022191,2]
[367264648,1750722657724,-647.9,0.00022191,2]
[367264649,1750722657733,-803.72,0.00022191,2]
[367264650,1750722657743,-516.62,0.00022191,2]
[367264651,1750722657752,-490.0,0.00022191,2]
[367264652,1750722657761,-490.0,0.00022191,2]
[367264653,1750722657771,-490.0,0.00022191,2]
[367264654,1750722657779,-1410.85,0.00022191,2]
[367264655,1750722657788,-490.0,0.00022191,2]
[367264656,1750722657798,-1134.51,0.00022191,2]
[367264657,1750722657807,-498.27,0.00022191,2]
[367264658,1750722657816,-1377.576921,0.00022191,7]
[367264659,1750722657827,-151.0,0.00022191,7]
[367264660,1750722657836,-971.99,0.00022191,2]
[367264661,1750722657845,-151.0,0.00022191,7]
[367264662,1750722657855,-490.0,0.00022191,2]
[367264663,1750722657863,-613.92,0.00022191,2]
[367264664,1750722657874,-527.41,0.00022191,2]
[367264665,1750722657883,-490.0,0.00022191,2]
[367264666,1750722657892,-490.0,0.00022191,2]
[367264667,1750722657901,-490.0,0.00022191,2]
[367264668,1750722657911,-854.15,0.00022191,2]
[367264669,1750722657920,-261.61346594,0.00022191,2]
[367264670,1750722657929,-1578.51,0.00022191,2]
[367264671,1750722657939,-502.06,0.00022191,2]
[367264672,1750722657948,-1004.78,0.00022191,2]
[367264673,1750722657957,-490.0,0.00022191,2]
[367264674,1750722657967,-490.0,0.00022191,2]
[367264675,1750722657977,-722.59,0.00022191,2]
[367264676,1750722657988,-1149.68,0.00022191,2]
[367264677,1750722657998,-498.0,0.00022191,2]
[367264678,1750722658008,-537.02,0.00022191,2]
[367264679,1750722658017,-490.0,0.00022191,2]
[367264680,1750722658027,-151.0,0.00022191,7]
[367264681,1750722658036,-1046.97,0.00022191,2]
[367264682,1750722658045,-490.0,0.00022191,2]
[367264683,1750722658055,-490.0,0.00022191,2]
[367264684,1750722658065,-490.0,0.00022191,2]
[367264685,1750722658075,-490.0,0.00022191,2]
[367264686,1750722658084,-490.0,0.00022191,2]
[367264687,1750722658093,-490.0,0.00022191,2]
[367264688,1750722658102,-581.05,0.00022191,2]
[367264689,1750722658111,-490.0,0.00022191,2]
[367264690,1750722658123,-1200.68,0.00022191,2]
[367264691,1750722658132,-490.0,0.00022191,2]
[367264692,1750722658142,-694.62,0.00022191,2]
[367264693,1750722658151,-490.0,0.00022191,2]
[367264694,1750722658160,-151.0,0.00022191,7]
[367264695,1750722658170,-4672.05,0.00022191,2]
[367264696,1750722658179,-490.0,0.00022191,2]
[367264697,1750722658189,-507.86,0.00022191,2]
[367264698,1750722658198,-684.55,0.00022191,2]
[367264699,1750722658208,-490.0,0.00022191,2]
[367264700,1750722658217,-593.80910127,0.00022191,2]
[367264701,1750722658226,-490.0,0.00022191,2]
[367264702,1750722658236,-490.0,0.00022191,2]
[367264703,1750722658246,-1066.19,0.00022191,2]
[367264704,1750722658255,-490.0,0.00022191,2]
[367264705,1750722658265,-4445.32,0.00022191,2]
[367264706,1750722658274,-1782.62,0.00022191,2]
[367264707,1750722658283,-490.0,0.00022191,2]
[367264708,1750722658293,-557.95520234,0.00022191,2]
[367264709,1750722658302,-490.0,0.00022191,2]
[367264710,1750722658311,-490.0,0.00022191,2]
[367264711,1750722658321,-490.0,0.00022191,2]
[367264712,1750722658330,-869.16,0.00022191,2]
[367264713,1750722658340,-151.0,0.00022191,7]
[367264714,1750722658349,-993.54,0.00022191,2]
[367264715,1750722658359,-490.0,0.00022191,2]
[367264716,1750722658368,-490.0,0.00022191,2]
[367264717,1750722658378,-612.99800309,0.00022191,2]
[367264718,1750722658388,-151.0,0.00022191,7]
[367264719,1750722658398,-490.0,0.00022191,2]
[367264720,1750722658408,-490.0,0.00022191,2]
[367264721,1750722658418,-151.0,0.00022191,7]
[367264722,1750722658428,-1775.91,0.00022191,2]
[367264723,1750722658438,-490.0,0.00022191,2]
[367264724,1750722658447,-490.0,0.00022191,2]
[367264725,1750722658457,-5169.32,0.00022191,2]
[367264726,1750722658467,-490.0,0.00022191,2]
[367264727,1750722658477,-490.0,0.00022191,2]
[367264728,1750722658486,-490.0,0.00022191,2]
[367264729,1750722658496,-775.96,0.00022191,2]
[367264730,1750722658506,-641.17,0.00022191,2]
[367264731,1750722658515,-577.29,0.00022191,2]
[367264732,1750722658525,-1008.32,0.00022191,2]
[367264733,1750722658534,-490.0,0.00022191,2]
[367264734,1750722658544,-983.36,0.00022191,2]
[367264735,1750722658554,-431.5191036,0.00022191,2]
[367264736,1750722658563,-490.0,0.00022191,2]
[367264737,1750722658573,-490.0,0.00022191,2]
[367264738,1750722658583,-490.0,0.00022191,2]
[367264739,1750722658592,-1881.06,0.00022191,2]
[367264740,1750722658602,-829.17,0.00022191,2]
[367264741,1750722658613,-1812.42,0.00022191,2]
[367264742,1750722658623,-490.0,0.00022191,2]
[367264743,1750722658632,-490.0,0.00022191,2]
[367264744,1750722658642,-834.28,0.00022191,2]
[367264745,1750722658652,-490.0,0.00022191,2]
[367264746,1750722658662,-490.0,0.00022191,2]
[367264747,1750722658671,-704.39,0.00022191,2]
[367264748,1750722658681,-622.57,0.00022191,2]
[367264749,1750722658690,-857.91,0.00022191,2]
[367264750,1750722658700,-1188.59,0.00022191,2]
[367264751,1750722658710,-153.756277,0.00022191,7]
[367264752,1750722658719,-495.31,0.00022191,2]
[367264753,1750722658728,-798.05,0.00022191,2]
[367264754,1750722658736,-2746.66,0.00022191,2]
[367264755,1750722658745,-490.0,0.00022191,2]
[367264756,1750722658756,-490.0,0.00022191,2]
[367264757,1750722658766,-153.756277,0.00022191,7]
[367264758,1750722658775,-490.0,0.00022191,2]
[367264759,1750722658783,-1013.71,0.00022191,2]
[367264760,1750722658792,-490.0,0.00022191,2]
[367264761,1750722658801,-490.0,0.00022191,2]
[367264762,1750722658810,-167.04,0.00022191,2]
[367264763,1750722658819,-151.0,0.00022191,7]
[367264764,1750722658833,-490.0,0.00022191,2]
[367264765,1750722658841,-769.79,0.00022191,2]
[367264766,1750722658850,-490.0,0.00022191,2]
[367264767,1750722658860,-1102.34,0.00022191,2]
[367264768,1750722658872,-490.0,0.00022191,2]
[367264769,1750722658881,-490.0,0.00022191,2]
[367264770,1750722658891,-490.0,0.00022191,2]
[367264771,1750722658902,-793.99,0.00022191,2]
[367264772,1750722658912,-2843.97,0.00022191,2]
[367264773,1750722658923,-151.0,0.00022191,7]
[367264774,1750722658935,-490.0,0.00022191,2]
[367264775,1750722658944,-700.64,0.00022191,2]
[367264776,1750722658954,-490.0,0.00022191,2]